fUST/lending_fUST_20241004
["ID","MTS","AMOUNT","RATE_DAILY","PERIOD"]
[339821945,1728027041213,-182729.32589069,0.00013959,2]
[339821946,1728027041223,-3000.0,0.0001396,30]
[339821947,1728027041237,-4183.03217319,0.00013966,2]
[339821948,1728027041247,-151.0,0.0001397,2]
[339821949,1728027041257,-151.0,0.0001397,2]
[339821950,1728027041266,-3000.0,0.0001397,30]
[339821951,1728027041278,-500.0,0.00013979,2]
[339821952,1728027041288,-151.0,0.0001398,2]
[339821953,1728027041298,-151.0,0.0001398,2]
[339821954,1728027041308,-3000.0,0.0001398,30]
[339821955,1728027041317,-12274.54159843,0.0001399,2]
[339821956,1728027041327,-12412.82089659,0.0001399,2]
[339821957,1728027041337,-151.0,0.0001399,2]
[339821958,1728027041347,-151.0,0.0001399,2]
[339821959,1728027041356,-3000.0,0.0001399,30]
[339821960,1728027041365,-25469.0929979,0.0001399,2]
[339821961,1728027041375,-60618.2883443,0.0001399,2]
[339821962,1728027041391,-1000.0,0.0001399,2]
[339821963,1728027041402,-151.0,0.00014,2]
[339821964,1728027041411,-151.0,0.00014,2]
[339821965,1728027041421,-966.0,0.00014,2]
[339821966,1728027041431,-153.0,0.00014,2]
[339821967,1728027041441,-153.0,0.00014,2]
[339821968,1728027041451,-3000.0,0.00014,30]
[339821969,1728027041460,-893.49475167,0.00014,2]
[339821970,1728027041470,-1000.0,0.00014008,2]
[339821971,1728027041480,-3000.0,0.0001401,30]
[339821972,1728027041491,-166.666666,0.00014019,2]
[339821973,1728027041500,-151.0,0.0001402,2]
[339821974,1728027041511,-151.0,0.0001402,2]
[339821975,1728027041521,-3000.0,0.0001402,30]
[339821976,1728027041530,-150.01,0.00014029,2]
[339821977,1728027041540,-152.222515,0.0001403,2]
[339821978,1728027041550,-151.0,0.0001403,2]
[339821979,1728027041559,-151.0,0.0001403,2]
[339821980,1728027041569,-3000.0,0.0001403,30]
[339821981,1728027041579,-5000.0,0.0001403,2]
[339821982,1728027041589,-500.0,0.0001403,2]
[339821983,1728027041598,-151.0,0.00014033,2]
[339821984,1728027041608,-3000.0,0.0001404,30]
[339821985,1728027041618,-3881.871378,0.0001405,30]
[339821986,1728027041628,-164.375762,0.00014053,2]
[339821987,1728027041638,-500.0,0.00014057,2]
[339821988,1728027041647,-501.29012445,0.00014073,2]
[339821989,1728027041657,-500.0,0.00014073,2]
[339821990,1728027041667,-500.0,0.00014073,2]
[339821991,1728027041676,-495.03867813,0.00014073,2]
[339821992,1728027041686,-500.0,0.00014073,2]
[339821993,1728027041696,-500.0,0.00014073,2]
[339821994,1728027041709,-617.65267361,0.00014073,2]
[339821995,1728027041720,-631.5859694,0.00014073,2]
[339821996,1728027041731,-500.0,0.00014073,2]
[339821997,1728027041742,-500.0,0.00014073,2]
[339821998,1728027041754,-25469.0929979,0.0001408,2]
[339821999,1728027041766,-60618.2883443,0.0001408,2]
[339822000,1728027041777,-25469.0929979,0.0001408,2]
[339822001,1728027041788,-60618.2883443,0.0001408,2]
[339822002,1728027041798,-500.0,0.00014085,2]
[339822003,1728027041809,-101876.371991,0.0001409,2]
[339822004,1728027041821,-189.675275,0.00014098,2]
[339822005,1728027041831,-156.4702836,0.000141,2]
[339822006,1728027041843,-210516.42509763,0.000141,5]
[339822031,1728027907396,2147.68511765,0.0002101,120]
[339822033,1728028035100,-340.53,0.00010959,2]
[339822034,1728028035121,-283.78,0.00010959,2]
[339822035,1728028035143,-236.48,0.00010959,2]
[339822036,1728028035164,-197.07,0.00010959,2]
[339822037,1728028035189,-164.22,0.00010959,2]
[339822038,1728028035210,-473.44829508,0.00012602,2]
[339822039,1728028035230,-353.458328,0.00012603,2]
[339822040,1728028035251,-517.5813057,0.00012764,2]
[339822041,1728028035273,-166.666674,0.0001281,2]
[339822042,1728028035294,-166.666674,0.00013143,2]
[339822043,1728028035316,-412.778192,0.00013378,2]
[339822044,1728028035337,-166.666674,0.00013477,2]
[339822045,1728028035359,-298.91,0.00013698,2]
[339822046,1728028035381,-227.003684,0.00013699,2]
[339822047,1728028035401,-166.666666,0.00013699,2]
[339822048,1728028035422,-153.0,0.000137,2]
[339822049,1728028035443,-300.0,0.00013829,2]
[339822050,1728028035464,-300.0,0.00013829,2]
[339822051,1728028035484,-1000.0,0.0001389,2]
[339822052,1728028035505,-176.60570179,0.0001389,2]
[339822053,1728028035525,-153.0,0.000139,2]
[339822054,1728028035547,-1614.75439153,0.000139,2]
[339822055,1728028165153,-177.69,0.00010959,2]
[339822056,1728028170243,67.31,0.00010959,2]
[339822084,1728028238799,-821.14,0.00010959,2]
[339822085,1728028238809,-5456.82668539,0.0001377,2]
[339822086,1728028238819,-183.61372581,0.000138,2]
[339822087,1728028238829,-183.6137258,0.0001381,2]
[339822088,1728028238839,-300.0,0.00013899,2]
[339822089,1728028238849,-6250.36058393,0.000139,2]
[339822090,1728028238859,-3000.0,0.000139,30]
[339822091,1728028238868,-3000.0,0.0001391,30]
[339822092,1728028238878,-1000.0,0.00013919,2]
[339822093,1728028238889,-3000.0,0.0001392,30]
[339822094,1728028238902,-3000.0,0.0001393,30]
[339822096,1728028238912,-3000.0,0.0001394,30]
[339822098,1728028238922,-150.0,0.00013944,2]
[339822100,1728028238932,-525.0,0.00013944,2]
[339822102,1728028238941,-1218.0,0.00013944,2]
[339822103,1728028238950,-150.0,0.00013944,2]
[339822104,1728028238960,-500.0,0.00013947,2]
[339822105,1728028238969,-500.0,0.00013947,2]
[339822106,1728028238979,-500.0,0.00013947,2]
[339822107,1728028238989,-161.27593288,0.00013947,2]
[339822108,1728028238998,-500.0,0.00013947,2]
[339822109,1728028239008,-500.0,0.00013947,2]
[339822110,1728028239019,-500.0,0.00013947,2]
[339822111,1728028239028,-500.0,0.00013947,2]
[339822112,1728028239037,-500.0,0.00013947,2]
[339822113,1728028239047,-500.0,0.00013947,2]
[339822114,1728028239056,-500.0,0.00013947,2]
[339822115,1728028239066,-500.0,0.00013947,2]
[339822116,1728028239076,-500.0,0.00013947,2]
[339822117,1728028239085,-500.0,0.00013947,2]
[339822118,1728028239095,-500.0,0.00013947,2]
[339822119,1728028239103,-500.0,0.00013947,2]
[339822120,1728028239113,-500.0,0.00013947,2]
[339822121,1728028239122,-500.0,0.00013947,2]
[339822122,1728028239132,-500.0,0.00013947,2]
[339822123,1728028239141,-500.0,0.00013947,2]
[339822124,1728028239151,-500.0,0.00013947,2]
[339822125,1728028239160,-500.0,0.00013947,2]
[339822126,1728028239169,-500.0,0.00013947,2]
[339822127,1728028239179,-500.0,0.00013947,2]
[339822128,1728028239189,-500.0,0.00013947,2]
[339822129,1728028239199,-500.0,0.00013947,2]
[339822130,1728028239208,-500.0,0.00013947,2]
[339822131,1728028239217,-500.0,0.00013947,2]
[339822132,1728028239227,-500.0,0.00013948,2]
[339822133,1728028239237,-594.97937463,0.00013948,2]
[339822134,1728028239246,-169.17717701,0.00013948,2]
[339822135,1728028239255,-500.0,0.00013948,2]
[339822136,1728028239264,-500.0,0.00013948,2]
[339822137,1728028239275,-500.0,0.00013948,2]
[339822138,1728028239285,-407.69056349,0.00013948,2]
[339822139,1728028239294,-456.84829656,0.00013948,2]
[339822140,1728028239303,-53342.50365968,0.00013949,2]
[339822141,1728028239319,-2649.28751412,0.00013949,2]
[339822142,1728028239329,-16301.41766634,0.00013949,2]
[339822143,1728028239341,-15229.13345163,0.00013949,2]
[339822144,1728028239352,-2791.16292535,0.00013949,2]
[339822145,1728028239364,-50543.88963898,0.00013949,2]
[339822146,1728028239373,-3000.0,0.0001395,30]
[339822147,1728028239383,-72826.21036179,0.00013959,2]
[339822151,1728028240742,-2382.43036614,0.00013959,2]
[339822152,1728028240797,-35756.80074725,0.00013959,2]
[339822153,1728028240806,-198.716,0.0001396,2]
[339822154,1728028240816,-3000.0,0.0001396,30]
[339822155,1728028241001,-4626.741292,0.0001397,30]
[339822156,1728028241013,-153.0,0.00013973,2]
[339822157,1728028241024,-151.0,0.0001398,2]
[339822158,1728028241033,-151.0,0.0001398,2]
[339822159,1728028241044,-151.0,0.0001398,2]
[339822160,1728028241054,-151.0,0.0001398,2]
[339822161,1728028241067,-45369.65086419,0.0001398,2]
[339822162,1728028241081,-38618.03589651,0.0001398,2]
[339822163,1728028241091,-127298.405523,0.0001398,2]
[339822164,1728028241102,-151.0,0.0001399,2]
[339822165,1728028241112,-151.0,0.0001399,2]
[339822166,1728028241123,-151.0,0.0001399,2]
[339822167,1728028241133,-151.0,0.0001399,2]
[339822168,1728028241145,-948.15765946,0.0001399,2]
[339822169,1728028241156,-79255.85651709,0.0001399,2]
[339822170,1728028241167,-1180.5122957,0.00014,2]
[339822171,1728028241176,-869.4,0.00014,2]
[339822172,1728028241186,-190.58,0.00014,2]
[339822173,1728028241195,-240.0086258,0.00014,2]
[339822174,1728028241205,-150.112233,0.00014,2]
[339822175,1728028241214,-150.112233,0.00014,2]
[339822176,1728028241224,-150.112233,0.00014,2]
[339822177,1728028241234,-150.112233,0.00014,2]
[339822178,1728028241244,-160.717666,0.00014,2]
[339822179,1728028241254,-166.666666,0.00014019,2]
[339822180,1728028241265,-500.0,0.0001403,2]
[339822181,1728028241276,-151.0,0.0001403,2]
[339822182,1728028241285,-151.0,0.0001403,2]
[339822183,1728028241294,-111983.582348,0.0001406,2]
[339822184,1728028241303,-99933.73735744,0.0001406,2]
[339822212,1728028246821,-151.0,0.0001398,2]
[339822213,1728028246832,-151.0,0.0001398,2]
[339822214,1728028246842,-151.0,0.0001403,2]
[339822215,1728028246852,-5572.10535317,0.0001406,2]
[339822216,1728028246864,-2058.53135892,0.0001406,2]
[339822260,1728029431890,-345.555405,0.00012603,2]
[339822261,1728029431900,-252.5243905,0.0001271,2]
[339822262,1728029431909,-166.666668,0.00012888,2]
[339822263,1728029431919,-166.666668,0.00013224,2]
[339822264,1728029431928,-500.0,0.00013395,2]
[339822265,1728029431937,-153.0,0.000134,2]
[339822266,1728029431947,-153.0,0.000134,2]
[339822267,1728029431956,-166.666668,0.0001356,2]
[339822268,1728029431966,-153.0,0.000136,2]
[339822269,1728029431975,-153.0,0.000136,2]
[339822270,1728029431985,-227.003684,0.00013699,2]
[339822271,1728029431994,-166.666666,0.00013699,2]
[339822272,1728029432004,-3477.30476258,0.00013797,2]
[339822284,1728029437896,-1979.52192281,0.00013797,2]
[339822285,1728029437907,-150.62072916,0.00013887,2]
[339822286,1728029437918,-300.0,0.00013898,2]
[339822287,1728029437928,-300.0,0.00013898,2]
[339822288,1728029437939,-150.0,0.000139,30]
[339822289,1728029437948,-150.0,0.00013944,2]
[339822290,1728029437958,-150.0,0.00013944,2]
[339822291,1728029437968,-150.0,0.00013944,2]
[339822292,1728029437978,-150.0,0.00013944,2]
[339822293,1728029437990,-525.0,0.00013944,2]
[339822294,1728029438000,-1218.0,0.00013944,2]
[339822295,1728029438010,-13980.32560849,0.00013959,2]
[339822296,1728029438020,-853.34189346,0.0001399,2]
[339822297,1728029438030,-500.0,0.00013999,2]
[339822298,1728029438040,-500.0,0.00013999,2]
[339822299,1728029438050,-500.0,0.00013999,2]
[339822300,1728029438060,-500.0,0.00013999,2]
[339822301,1728029438070,-403.76885868,0.00013999,2]
[339822302,1728029438079,-500.0,0.00013999,2]
[339822303,1728029438089,-500.0,0.00013999,2]
[339822304,1728029438099,-304.56553104,0.00014,2]
[339822305,1728029438110,-1000.0,0.00014,14]
[339822306,1728029438119,-782.46,0.00014,2]
[339822307,1728029438130,-25978.54,0.00014,2]
[339822308,1728029438141,-158.972,0.00014,2]
[339822309,1728029438151,-989.66914666,0.00014,2]
[339822310,1728029438162,-166.666666,0.00014019,2]
[339822311,1728029438174,-500.0,0.00014048,2]
[339822312,1728029438183,-643.85821175,0.00014059,2]
[339822313,1728029438193,-500.0,0.00014059,2]
[339822314,1728029438203,-500.0,0.00014059,2]
[339822315,1728029438214,-500.0,0.00014059,2]
[339822316,1728029438224,-183.39404805,0.00014059,2]
[339822317,1728029438235,-500.0,0.00014059,2]
[339822318,1728029438246,-500.0,0.00014059,2]
[339822319,1728029438256,-500.0,0.00014059,2]
[339822320,1728029438268,-7239.51919433,0.0001406,2]
[339822335,1728029439908,-178000.84853167,0.0001406,2]
[339822336,1728029439923,-132231.913387,0.0001406,2]
[339822337,1728029439932,-274.014462,0.00014061,2]
[339822338,1728029439943,-500.0,0.00014073,2]
[339822339,1728029439953,-500.0,0.00014073,2]
[339822340,1728029439963,-500.0,0.00014073,2]
[339822341,1728029439974,-500.0,0.00014073,2]
[339822342,1728029439984,-599.31890859,0.00014073,2]
[339822343,1728029439994,-500.0,0.00014073,2]
[339822344,1728029440004,-500.0,0.00014073,2]
[339822345,1728029440014,-500.0,0.00014073,2]
[339822346,1728029440024,-500.0,0.00014073,2]
[339822347,1728029440034,-311.65025741,0.00014073,2]
[339822348,1728029440043,-37048.0735453,0.0001408,2]
[339822349,1728029440053,-26446.3826774,0.0001408,2]
[339822350,1728029440063,-151.0,0.0001408,2]
[339822351,1728029440072,-151.0,0.0001408,2]
[339822352,1728029440082,-37048.0735453,0.0001408,2]
[339822353,1728029440091,-52892.7653547,0.0001408,2]
[339822354,1728029440101,-151.0,0.0001409,2]
[339822355,1728029440110,-151.0,0.0001409,2]
[339822356,1728029440121,-151.0,0.0001409,2]
[339822357,1728029440131,-132231.913387,0.0001409,2]
[339822358,1728029440140,-151.0,0.0001409,2]
[339822359,1728029440150,-151.0,0.0001409,2]
[339822360,1728029440159,-237.57158654,0.00014099,2]
[339822361,1728029440169,-7536.91463277,0.000141,2]
[339822362,1728029440178,-8073.47365127,0.000141,2]
[339822363,1728029440187,-508067.6281725,0.000141,5]
[339822381,1728029443070,-2209.50547563,0.000141,5]
[339822408,1728030444128,-193.34,0.00010959,2]
[339822409,1728030444153,-161.12,0.00010959,2]
[339822410,1728030444174,-805.62,0.00010959,2]
[339822411,1728030444196,-3000.0,0.00012297,2]
[339822412,1728030444217,-2152.5201743,0.0001239,2]
[339822413,1728030444239,-345.555406,0.00012603,2]
[339822414,1728030444262,-166.806832,0.00012789,2]
[339822415,1728030444284,-300.0,0.00012833,2]
[339822416,1728030444307,-300.0,0.00012833,2]
[339822417,1728030444329,-166.806832,0.00012834,2]
[339822418,1728030444353,-166.806832,0.00012878,2]
[339822419,1728030444378,-166.806832,0.00012922,2]
[339822420,1728030444403,-166.806832,0.00012967,2]
[339822421,1728030444426,-166.806832,0.00013011,2]
[339822422,1728030444449,-54.89368768,0.00013056,2]
[339822439,1728030547121,-245.0,0.00010959,2]
[339822469,1728030631956,-407.35865,0.00012603,2]
[339822471,1728030631966,-111.91314432,0.00013056,2]
[339822473,1728030631975,-166.806832,0.000131,2]
[339822475,1728030631985,-166.806832,0.00013145,2]
[339822477,1728030631997,-166.806832,0.00013189,2]
[339822480,1728030632007,-1325.7469724,0.00013202,2]
[339822482,1728030632017,-696.79443635,0.00013228,2]
[339822483,1728030632029,-166.806832,0.00013233,2]
[339822485,1728030632041,-166.806832,0.00013278,2]
[339822487,1728030632051,-166.806832,0.00013322,2]
[339822489,1728030632060,-166.806832,0.00013367,2]
[339822491,1728030632070,-166.806832,0.00013411,2]
[339822493,1728030632079,-166.806832,0.00013456,2]
[339822494,1728030632089,-300.0,0.00013698,2]
[339822496,1728030632098,-300.0,0.00013698,2]
[339822498,1728030632108,-166.666666,0.00013699,2]
[339822499,1728030632119,-227.003684,0.00013699,2]
[339822500,1728030632128,-6783.33293453,0.00013699,2]
[339822534,1728030640027,-4934.76450567,0.00013699,2]
[339822535,1728030640038,-634.0390204,0.00013699,2]
[339822536,1728030640047,-260.585163,0.00013699,2]
[339822537,1728030640057,-153.0,0.0001389,2]
[339822538,1728030640066,-153.0,0.0001389,2]
[339822539,1728030640076,-153.0,0.0001389,2]
[339822540,1728030640085,-150.0,0.00013956,2]
[339822541,1728030640095,-525.0,0.00013956,2]
[339822542,1728030640104,-3348.93585542,0.0001397,2]
[339822543,1728030640114,-704.21,0.00014,2]
[339822544,1728030640123,-158.973,0.00014,2]
[339822545,1728030640132,-207.38106912,0.00014,2]
[339822546,1728030640142,-768.00770415,0.00014,2]
[339822547,1728030640151,-5243.77431903,0.00014,2]
[339822548,1728030640160,-166.666666,0.00014019,2]
[339822549,1728030640169,-220.72947279,0.0001406,2]
[339822550,1728030640178,-629.7571899,0.00014069,2]
[339822551,1728030640188,-267.82616062,0.00014069,2]
[339822552,1728030640197,-61520.6941924,0.0001407,2]
[339822553,1728030640206,-18512.4678742,0.0001407,2]
[339822554,1728030640216,-500.0,0.00014073,2]
[339822555,1728030640225,-276.70024115,0.00014073,2]
[339822556,1728030640234,-500.0,0.00014073,2]
[339822557,1728030640243,-500.0,0.00014073,2]
[339822558,1728030640253,-500.0,0.00014073,2]
[339822559,1728030640262,-294.12898686,0.00014073,2]
[339822560,1728030640271,-500.0,0.00014073,2]
[339822561,1728030640281,-500.0,0.00014073,2]
[339822562,1728030640290,-609.86160289,0.00014079,2]
[339822563,1728030640299,-500.0,0.00014079,2]
[339822564,1728030640308,-276.98329115,0.00014079,2]
[339822565,1728030640317,-500.0,0.00014079,2]
[339822566,1728030640327,-500.0,0.00014079,2]
[339822567,1728030640336,-500.0,0.00014079,2]
[339822568,1728030640345,-500.0,0.00014079,2]
[339822569,1728030640354,-500.0,0.00014079,2]
[339822570,1728030640364,-123041.388385,0.0001408,2]
[339822571,1728030640373,-37024.9357483,0.0001408,2]
[339822572,1728030640382,-209.5454911,0.00014082,2]
[339822573,1728030640391,-209.5454911,0.00014082,2]
[339822574,1728030640401,-209.5454911,0.00014082,2]
[339822575,1728030640410,-30760.3470962,0.0001409,2]
[339822576,1728030640419,-9256.23393708,0.0001409,2]
[339822577,1728030640429,-30760.3470962,0.0001409,2]
[339822578,1728030640438,-93910.33262471,0.0001409,2]
[339822613,1728030643127,-10303.63943682,0.0001409,2]
[339822621,1728030646031,-801.14108126,0.00013928,2]
[339822622,1728030646047,-213.06991874,0.00013928,2]
[339822623,1728030646057,-9904.22831647,0.0001409,2]
[339822633,1728031630144,-614.78500444,0.0001082,2]
[339822634,1728031630166,-500.0,0.0001091,2]
[339822635,1728031630187,-645.68,0.00010959,2]
[339822636,1728031630207,-538.06,0.00010959,2]
[339822637,1728031630227,-448.39,0.00010959,2]
[339822638,1728031630248,-500.0,0.00011485,2]
[339822639,1728031630270,-500.0,0.00012089,2]
[339822640,1728031630292,-213.850891,0.00012347,2]
[339822641,1728031630313,-213.850891,0.00012381,2]
[339822642,1728031630336,-213.850891,0.00012415,2]
[339822643,1728031630357,-213.850891,0.00012449,2]
[339822644,1728031630379,-213.850891,0.00012483,2]
[339822645,1728031630399,-213.850891,0.00012516,2]
[339822646,1728031630419,-213.850891,0.0001255,2]
[339822647,1728031630439,-213.850891,0.00012584,2]
[339822648,1728031630460,-404.663634,0.00012603,2]
[339822649,1728031630481,-213.850891,0.00012618,2]
[339822650,1728031630501,-213.850891,0.00012652,2]
[339822651,1728031630521,-213.850891,0.00012686,2]
[339822652,1728031630542,-213.850891,0.0001272,2]
[339822653,1728031630562,-500.0,0.00012725,2]
[339822654,1728031630583,-213.850891,0.00012753,2]
[339822655,1728031630608,-213.850891,0.00012787,2]
[339822656,1728031630629,-213.850891,0.00012821,2]
[339822657,1728031630649,-279.40495005,0.00012855,2]
[339822664,1728031759153,-245.0,0.00010958,2]
[339822709,1728031832238,-414.49,0.00010959,2]
[339822711,1728031832251,-345.41,0.00010959,2]
[339822713,1728031832264,-287.84,0.00010959,2]
[339822715,1728031832276,-239.86,0.00010959,2]
[339822717,1728031832289,-199.89,0.00010959,2]
[339822719,1728031832301,-517.5813057,0.00012419,2]
[339822722,1728031832315,-174.36161,0.00012678,2]
[339822724,1728031832327,-174.36161,0.00012761,2]
[339822725,1728031832340,-174.36161,0.00012843,2]
[339822726,1728031832354,-174.36161,0.00012926,2]
[339822727,1728031832366,-174.36161,0.00013009,2]
[339822728,1728031832380,-500.0,0.00013395,2]
[339822729,1728031832393,-153.0,0.00013507,2]
[339822730,1728031832406,-166.666666,0.00013699,2]
[339822731,1728031832417,-227.003684,0.00013699,2]
[339822732,1728031832431,-260.585164,0.00013699,2]
[339822733,1728031832444,-250.0,0.00013969,2]
[339822734,1728031832455,-300.0,0.00013969,2]
[339822735,1728031832468,-176.60570179,0.0001397,2]
[339822736,1728031832482,-3184.46209028,0.0001397,2]
[339822737,1728031832494,-158.973,0.0001399,2]
[339822738,1728031832506,-633.79,0.00014,2]
[339822739,1728031832519,-8175.67307279,0.00014,2]
[339822740,1728031832533,-2325.3,0.00014,2]
[339822741,1728031832545,-807.85696383,0.00014,2]
[339822742,1728031832558,-166.666666,0.00014019,2]
[339822743,1728031832572,-500.0,0.00014059,2]
[339822744,1728031832585,-426.90312202,0.00014059,2]
[339822745,1728031832598,-293.88830381,0.00014059,2]
[339822746,1728031832612,-500.0,0.00014059,2]
[339822747,1728031832626,-500.0,0.00014059,2]
[339822748,1728031832639,-500.0,0.00014059,2]
[339822749,1728031832653,-243.33324702,0.0001406,2]
[339822750,1728031832666,-56133.443377,0.0001406,2]
[339822751,1728031832678,-9526.68981216,0.0001406,2]
[339822752,1728031832735,-340.95534464,0.0001406,2]
[339822779,1728031838295,-166.57,0.00010959,2]
[339822781,1728031838305,-174.36161,0.00013091,2]
[339822783,1728031838315,-174.36161,0.00013174,2]
[339822785,1728031838327,-174.36161,0.00013256,2]
[339822787,1728031838338,-174.36161,0.00013339,2]
[339822789,1728031838348,-24030.02299,0.0001406,2]
[339822791,1728031838366,-110725.7441372,0.0001406,2]
[339822793,1728031838377,-500.0,0.00014065,2]
[339822795,1728031838386,-18711.1477923,0.0001407,2]
[339822797,1728031838395,-48207.8040948,0.0001407,2]
[339822798,1728031838404,-150.73146851,0.00014073,2]
[339822799,1728031838414,-500.0,0.00014073,2]
[339822800,1728031838423,-500.0,0.00014073,2]
[339822801,1728031838433,-383.65400774,0.00014073,2]
[339822802,1728031838442,-500.0,0.00014073,2]
[339822803,1728031838451,-500.0,0.00014073,2]
[339822804,1728031838462,-18711.1477923,0.0001408,2]
[339822805,1728031838471,-47597.28014667,0.0001408,2]
[339822823,1728031840278,-610.52394813,0.0001408,2]
[339822824,1728031840288,-3768.45731638,0.0001408,2]
[339822825,1728031840297,-3784.86058268,0.0001408,2]
[339822845,1728031843223,-251.87624295,0.0001408,2]
[339822847,1728031843234,-6366.32863667,0.0001408,2]
[339822862,1728031846275,-832.89,0.00010959,2]
[339822863,1728031846284,-4049.81176479,0.0001408,2]
[339822871,1728032077929,150.0,0.0001,2]
[339822878,1728032353505,3753.81418838,0.00021,120]
[339822913,1728032997336,1398.67626144,0.00010206,2]
[339822962,1728033032395,-384.430452,0.00012603,2]
[339822964,1728033032405,-250.0000027,0.00013066,2]
[339822967,1728033032415,-227.003685,0.00013699,2]
[339822969,1728033032427,-166.666666,0.00013699,2]
[339822971,1728033032438,-197.73416068,0.00013973,2]
[339822973,1728033032448,-300.0,0.00013999,2]
[339822975,1728033032465,-570.41,0.00014,2]
[339822977,1728033032476,-27068.83969022,0.00014,2]
[339822980,1728033032487,-727.07126751,0.00014,2]
[339822981,1728033032498,-166.666666,0.00014019,2]
[339822983,1728033032508,-162.22216468,0.00014019,2]
[339822985,1728033032519,-500.0,0.00014073,2]
[339822987,1728033032531,-500.0,0.00014073,2]
[339822989,1728033032542,-500.0,0.00014073,2]
[339822991,1728033032552,-505.36159379,0.00014073,2]
[339822993,1728033032562,-500.0,0.00014073,2]
[339822995,1728033032572,-500.0,0.00014073,2]
[339822997,1728033032582,-500.0,0.00014073,2]
[339822998,1728033032594,-503.54114817,0.00014073,2]
[339823000,1728033032604,-561.12849478,0.00014073,2]
[339823002,1728033032614,-158.973,0.0001408,2]
[339823004,1728033032625,-55162.15280617,0.0001408,2]
[339823039,1728033046538,-253.68484928,0.00014,2]
[339823040,1728033046548,-12400.61631473,0.0001408,2]
[339823041,1728033046559,-298.83218542,0.00014089,2]
[339823042,1728033046569,-500.0,0.00014089,2]
[339823043,1728033046579,-605.72181267,0.00014089,2]
[339823044,1728033046589,-500.0,0.00014089,2]
[339823045,1728033046600,-218.844119,0.0001409,2]
[339823046,1728033046612,-26150.6257633,0.0001409,2]
[339823047,1728033057610,181.28,0.00010959,2]
[339823049,1728033068159,63.72,0.00010959,2]
[339823061,1728033342344,-400000.0,0.000141,5]
[339823062,1728033351328,-400000.0,0.000141,5]
[339823063,1728033441898,-477.21,0.00010959,2]
[339823064,1728033441924,-397.68,0.00010959,2]
[339823065,1728033441950,-331.4,0.00010959,2]
[339823066,1728033474309,-276.16,0.00010959,2]
[339823067,1728033474337,-230.14,0.00010959,2]
[339823068,1728033474371,-191.78,0.00010959,2]
[339823069,1728033497311,-159.82,0.00010959,2]
[339823070,1728033497337,-799.11,0.00010959,2]
[339823075,1728034048153,-193.34,0.00010959,2]
[339823076,1728034048175,-161.12,0.00010959,2]
[339823077,1728034048198,-805.62,0.00010959,2]
[339823078,1728034048222,-300.0,0.00012056,2]
[339823079,1728034048246,-300.0,0.00012056,2]
[339823080,1728034048269,-6540.79592933,0.00012057,2]
[339823098,1728034165321,-245.0,0.00010959,2]
[339823127,1728034232512,-300.0,0.00012056,2]
[339823129,1728034232522,-300.0,0.00012056,2]
[339823131,1728034232532,-644.70980628,0.00012057,2]
[339823144,1728034238543,-17714.49426439,0.00012057,2]
[339823145,1728034238552,-250.0,0.00012315,2]
[339823146,1728034238562,-833.1273155,0.0001234,2]
[339823147,1728034238572,-647.6870395,0.0001234,2]
[339823148,1728034238582,-206.948421,0.00012525,2]
[339823149,1728034238591,-382.4867,0.00012603,2]
[339823150,1728034238601,-206.948421,0.00013178,2]
[339823151,1728034238611,-420.0,0.00013234,2]
[339823152,1728034238622,-204.7021823,0.00013278,2]